bitfinex/quotes_SOLUSD_20260309
["timestamp","ask_amount","ask_price","bid_price","bid_amount"]
[1773046413537,0.70887589,83.749,83.721,0.69800498]
[1773046413753,0.70887589,83.749,83.72,4.3805439]
[1773046413754,0.70887589,83.749,83.714,0.69800498]
[1773046414125,0.70887589,83.749,83.72,4.3805439]
[1773046414820,0.70887589,83.749,83.721,11.94443449]
[1773046415032,0.70887589,83.749,83.721,12.64243947]
[1773046416145,0.70887589,83.749,83.723,11.94414915]
[1773046416529,0.70887589,83.749,83.723,12.64215413]
[1773046417225,0.70887589,83.759,83.724,0.69800498]
[1773046417427,0.70887589,83.768,83.741,0.69800498]
[1773046418046,0.70887589,83.768,83.743,0.69800498]
[1773046420357,0.70887589,83.768,83.745,0.69800498]
[1773046420524,0.70887589,83.779,83.75,4.3805439]
[1773046420722,0.70887589,83.779,83.751,0.69800498]
[1773046420925,0.70887589,83.778,83.751,0.69800498]
[1773046421120,0.70887589,83.778,83.744,41.79403897]
[1773046421348,0.70887589,83.778,83.745,0.69800498]
[1773046428927,0.71415639,83.769,83.735,0.69735682]
[1773046433345,0.71415639,83.767,83.737,0.69735682]
[1773046434651,0.71415639,83.759,83.73,0.69735682]
[1773046434875,0.71415639,83.759,83.732,11.94275182]
[1773046435554,0.71415639,83.759,83.732,12.64010864]
[1773046436661,0.71415639,83.759,83.703,59.73460026]
[1773046436662,0.71415639,83.758,83.735,0.69735682]
[1773046437140,0.71415639,83.765,83.74,4.3814846]
[1773046437337,0.71415639,83.769,83.741,0.69735682]
[1773046438741,0.71415639,83.779,83.743,0.69735682]
[1773046439742,0.71415639,83.784,83.743,0.69735682]
[1773046439940,0.71415639,83.779,83.743,0.69735682]
[1773046441045,0.71415639,83.778,83.751,0.69735682]
[1773046441243,0.71415639,83.789,83.751,0.69735682]
[1773046441636,0.71415639,83.789,83.761,0.69735682]
[1773046442245,0.71415639,83.795,83.761,0.69735682]
[1773046444651,0.74097731,83.793,83.763,0.74763008]
[1773046445059,0.74097731,83.8,83.771,0.74763008]
[1773046445242,0.74097731,83.799,83.771,0.74763008]
[1773046446964,4.3814846,83.79,83.765,0.74763008]
[1773046447141,0.74097731,83.789,83.765,0.74763008]
[1773046448758,0.74097731,83.789,83.766,12.68564789]
[1773046449153,0.74097731,83.789,83.767,0.74763008]
[1773046449563,0.74097731,83.788,83.767,0.74763008]
[1773046451161,0.74097731,83.786,83.762,11.93857797]
[1773046451549,0.74097731,83.786,83.762,12.68620805]
[1773046452063,0.74097731,83.786,83.762,0.74763008]
[1773046453467,59.66128301,83.807,83.75,4.3814846]
[1773046453468,0.74097731,83.779,83.757,0.74763008]
[1773046453761,0.74097731,83.784,83.757,0.74763008]
[1773046456048,0.74097731,83.784,83.759,0.74763008]
[1773046456648,0.74097731,83.782,83.759,0.74763008]
[1773046457871,0.74097731,83.78,83.758,11.93915805]
[1773046458256,0.74097731,83.78,83.758,12.68678813]
[1773046458555,0.74097731,83.78,83.759,0.74763008]
[1773046459674,0.74097731,83.789,83.759,0.74763008]
[1773046460759,0.74097731,83.786,83.761,0.74763008]
[1773046462485,29.83411172,83.797,83.771,0.74763008]
[1773046462486,0.74097731,83.797,83.771,0.74763008]
[1773046462769,0.74097731,83.797,83.737,59.71067207]
[1773046462770,0.74097731,83.779,83.753,0.74763008]
[1773046462978,0.74097731,83.779,83.755,0.74763008]
[1773046463357,4.3814846,83.79,83.755,0.74763008]
[1773046463553,4.77925802,83.836,83.754,11.93972825]
[1773046463554,11.93320844,83.8,83.771,0.74763008]
[1773046463752,12.67418575,83.8,83.771,0.74763008]
[1773046463979,0.74097731,83.807,83.781,0.74763008]
[1773046464473,0.74097731,83.806,83.781,0.74763008]
[1773046465572,4.3814846,83.81,83.783,0.74763008]
[1773046465758,11.93160114,83.812,83.783,0.74763008]
[1773046466567,12.67257845,83.812,83.783,0.74763008]
[1773046466970,4.3814846,83.81,83.783,0.74763008]
[1773046467279,0.74097731,83.819,83.791,0.74763008]
[1773046467463,11.93068114,83.818,83.791,0.74763008]
[1773046467982,0.1,83.82,83.801,0.74763008]
[1773046469954,0.1,83.82,83.803,0.74763008]
[1773046470898,7.28582252,83.829,83.81,4.3814846]
[1773046471184,7.28582252,83.829,83.811,0.74763008]
[1773046471888,19.9559544,83.829,83.811,0.74763008]
[1773046472574,0.74097731,83.828,83.811,0.74763008]
[1773046473797,0.68302205,83.819,83.79,4.3814846]
[1773046473968,0.68302205,83.809,83.781,11.93588045]
[1773046475769,0.68302205,83.809,83.782,0.67478762]
[1773046476877,4.3814846,83.81,83.78,34.22122244]
[1773046476878,11.930934,83.816,83.791,0.67478762]
[1773046477075,0.68302205,83.815,83.791,0.67478762]
[1773046478683,0.68302205,83.815,83.784,0.67478762]
[1773046479573,0.68302205,83.809,83.786,0.67478762]
[1773046480580,4.3814846,83.82,83.786,0.67478762]
[1773046480581,0.68302205,83.819,83.786,0.67478762]
[1773046480785,0.68302205,83.818,83.791,0.67478762]
[1773046481782,0.68302205,83.816,83.793,0.67478762]
[1773046482895,0.68302205,83.816,83.787,12.60968683]
[1773046483478,0.68302205,83.816,83.788,0.67478762]
[1773046484897,0.68302205,83.814,83.789,11.93474083]
[1773046487693,0.67868636,83.812,83.789,0.71739432]
[1773046488993,11.9313233,83.813,83.761,0.71739432]
[1773046488994,0.67868636,83.799,83.761,0.71739432]
[1773046489176,0.67868636,83.789,83.761,0.71739432]
[1773046489680,4.3814846,83.79,83.763,0.71739432]
[1773046489993,0.67868636,83.789,83.763,0.71739432]
[1773046491097,11.93488327,83.788,83.764,11.93830285]
[1773046491295,12.61356963,83.788,83.765,0.71739432]
[1773046491502,12.61356963,83.788,83.715,1.19452905]
[1773046491503,0.67868636,83.779,83.745,0.71739432]
[1773046491700,11.93488327,83.788,83.741,11.94158178]
[1773046491701,0.67868636,83.759,83.741,11.94158178]
[1773046492078,4.3814846,83.76,83.742,0.71739432]
[1773046492280,0.67868636,83.765,83.742,0.71739432]
[1773046492472,4.3814846,83.77,83.742,0.71739432]
[1773046493302,4.3814846,83.77,83.744,0.71739432]
[1773046493679,0.67868636,83.769,83.744,0.71739432]
[1773046494395,0.67868636,83.759,83.739,0.71739432]
[1773046494595,0.67868636,83.759,83.734,11.94258007]
[1773046494984,0.67868636,83.759,83.735,0.71739432]
[1773046495594,0.67868636,83.759,83.736,12.65968915]
[1773046495791,0.67868636,83.759,83.737,0.71739432]
[1773046496402,0.67868636,83.758,83.737,0.71739432]
[1773046497594,0.67868636,83.758,83.708,3.69383402]
[1773046497595,0.67868636,83.758,83.715,0.71739432]
[1773046497800,0.67868636,83.749,83.721,0.71739432]
[1773046498693,4.38207332,83.76,83.721,0.71739432]
[1773046498893,4.38207332,83.76,83.731,0.71739432]
[1773046499495,12.61721687,83.763,83.731,0.71739432]
[1773046499686,4.38207332,83.76,83.731,0.71739432]
[1773046500107,5.06075968,83.76,83.733,0.71739432]
[1773046500805,0.67868636,83.759,83.733,0.71739432]
[1773046500997,0.67868636,83.765,83.733,0.71739432]
[1773046501904,4.38207332,83.77,83.741,0.71739432]
[1773046502102,0.67868636,83.769,83.741,0.71739432]
[1773046502299,0.67868636,83.769,83.732,41.80002866]
[1773046502300,0.67868636,83.759,83.742,11.94143918]
[1773046502498,0.67868636,83.759,83.738,11.94199779]
[1773046503093,0.67868636,83.759,83.739,0.69600662]
[1773046504196,4.38207332,83.76,83.741,0.69600662]
[1773046504395,0.72124444,83.759,83.741,0.69600662]
[1773046504596,0.72124444,83.759,83.736,11.94228587]
[1773046504912,0.72124444,83.759,83.737,0.69600662]
[1773046505414,0.72124444,83.769,83.737,0.69600662]
[1773046506801,0.72124444,83.769,83.741,0.69600662]
[1773046507817,9.8534615,83.9,83.761,0.69600662]
[1773046507818,0.72124444,83.789,83.761,0.69600662]
[1773046508114,69.57193704,83.826,83.771,0.69600662]
[1773046508115,0.72124444,83.798,83.771,0.69600662]
[1773046508316,0.72124444,83.789,83.76,0.69600662]
[1773046508523,0.72124444,83.789,83.66,47.81206191]
[1773046508524,0.72124444,83.769,83.735,11.9424214]
[1773046508690,0.72124444,83.759,83.73,12.63906489]
[1773046509015,0.72124444,83.757,83.73,12.63906489]
[1773046509202,0.72124444,83.757,83.731,0.69600662]
[1773046509397,0.72124444,83.757,83.72,4.38207332]
[1773046509398,4.38207332,83.75,83.722,0.69600662]
[1773046509599,4.38207332,83.75,83.649,47.81857136]
[1773046509600,0.72124444,83.749,83.719,11.94471983]
[1773046509902,4.38207332,83.75,83.719,11.94471983]
[1773046509903,0.72124444,83.739,83.719,11.94471983]
[1773046510615,0.72124444,83.739,83.719,12.64072645]
[1773046511111,0.72124444,83.739,83.72,0.69600662]
[1773046511410,4.38207332,83.75,83.712,0.69600662]
[1773046511411,0.72124444,83.748,83.712,0.69600662]
[1773046512516,0.72124444,83.739,83.711,11.94586135]
[1773046513226,0.72124444,83.737,83.707,11.94643219]
[1773046513523,0.72124444,83.729,83.707,11.94643219]
[1773046514711,0.72124444,83.729,83.7,34.45037008]
[1773046514712,0.72124444,83.729,83.702,11.94703888]
[1773046514917,0.72124444,83.729,83.7,0.2]
[1773046515222,0.72124444,83.709,83.689,0.69600662]
[1773046515421,16.32666793,83.72,83.689,0.69600662]
[1773046515604,0.72124444,83.728,83.701,0.69600662]
[1773046516204,0.72124444,83.737,83.711,0.69600662]
[1773046517010,0.72124444,83.737,83.701,0.69600662]
[1773046519020,0.72124444,83.737,83.703,0.69600662]
[1773046519607,0.72124444,83.735,83.703,0.69600662]
[1773046520407,0.72124444,83.729,83.702,11.94714582]
[1773046523227,0.72124444,83.729,83.702,0.69600662]
[1773046524832,0.72124444,83.727,83.693,0.69600662]
[1773046526035,0.72124444,83.719,83.695,0.69600662]
[1773046527829,0.72124444,83.709,83.683,12.64586501]
[1773046528527,0.72124444,83.709,83.684,0.69600662]
[1773046529530,0.72124444,83.709,83.683,11.94985839]
[1773046530418,0.72124444,83.714,83.683,0.69600662]
[1773046530612,0.72124444,83.714,83.673,29.87806297]
[1773046530613,0.72124444,83.722,83.691,0.69600662]
[1773046531612,0.72124444,83.72,83.691,0.69600662]
[1773046531814,0.72124444,83.719,83.691,0.69600662]
[1773046534726,0.72124444,83.719,83.693,0.66633068]
[1773046536721,0.72124444,83.719,83.694,11.94828781]
[1773046536916,0.72124444,83.719,83.695,0.66633068]
[1773046539442,0.72541371,83.718,83.696,11.94800229]
[1773046539643,0.72541371,83.718,83.684,0.66633068]
[1773046540141,0.72541371,83.709,83.685,0.66633068]
[1773046541149,0.72541371,83.729,83.691,0.66633068]
[1773046541439,0.72541371,83.728,83.693,0.66633068]
[1773046541945,0.72541371,83.728,83.701,0.66633068]
[1773046542141,0.72541371,83.726,83.701,0.66633068]
[1773046543948,0.72541371,83.724,83.701,0.66633068]
[1773046544248,0.72541371,83.724,83.7,11.9473215]
[1773046544955,0.72541371,83.719,83.685,0.66633068]
[1773046546349,0.72541371,83.717,83.687,0.66633068]
[1773046546554,0.72541371,83.724,83.691,0.66633068]
[1773046547526,11.94270018,83.734,83.701,0.66633068]
[1773046547932,11.94198044,83.739,83.711,0.66633068]
[1773046548327,12.66739415,83.739,83.711,0.66633068]
[1773046548538,0.72541371,83.738,83.712,11.94571865]
[1773046548733,0.72541371,83.738,83.713,0.66633068]
[1773046549249,0.72541371,83.794,83.731,0.66633068]
[1773046549448,0.72541371,83.789,83.75,4.38207332]
[1773046549850,4.38207332,83.78,83.75,5.048404]
[1773046550034,0.7130706,83.779,83.75,5.048404]
[1773046550235,0.7130706,83.769,83.741,0.67101587]
[1773046550959,0.7130706,83.767,83.742,11.94143918]
[1773046551139,0.7130706,83.767,83.737,0.67101587]
[1773046551344,0.7130706,83.767,83.735,11.94230876]
[1773046552154,0.7130706,83.757,83.731,11.94300796]
[1773046552650,0.7130706,83.773,83.751,0.67101587]
[1773046553351,11.93611008,83.78,83.751,0.67101587]
[1773046554139,0.7130706,83.779,83.751,0.67101587]
[1773046555239,0.7130706,83.777,83.749,11.94037965]
[1773046557254,0.7130706,83.777,83.75,4.38207332]
[1773046557465,0.7130706,83.775,83.751,11.94015593]
[1773046557667,0.7130706,83.769,83.724,0.67101587]
[1773046557963,0.7130706,83.769,83.741,0.67101587]
[1773046559849,11.93773278,83.768,83.742,11.94143918]
[1773046560051,12.65080338,83.768,83.743,0.67101587]
[1773046560356,0.7130706,83.767,83.743,0.67101587]
[1773046560746,4.37965004,83.77,83.743,0.67101587]
[1773046560951,11.93545306,83.784,83.751,0.67101587]
[1773046561376,0.7130706,83.783,83.751,0.67101587]
[1773046562065,0.7130706,83.781,83.753,0.67101587]
[1773046562371,0.7130706,83.781,83.761,0.67101587]
[1773046562750,0.7130706,83.788,83.761,0.67101587]
[1773046562948,0.7130706,83.809,83.781,0.67101587]
[1773046563148,0.7130706,83.809,83.78,4.37965004]
[1773046563149,0.7130706,83.809,83.78,5.07471029]
[1773046563371,0.7130706,83.809,83.781,0.69506025]
[1773046564851,0.70118542,83.816,83.79,4.37965004]
[1773046565062,0.70118542,83.816,83.791,0.69506025]
[1773046565655,11.93046922,83.819,83.8,4.37965004]
[1773046566274,0.70118542,83.818,83.79,4.37965004]
[1773046566668,0.70118542,83.818,83.78,4.37965004]
[1773046566868,0.70118542,83.809,83.774,0.69506025]
[1773046568769,0.70118542,83.807,83.78,5.07471029]
[1773046568973,0.70118542,83.818,83.781,0.69506025]
[1773046569762,0.70118542,83.799,83.77,4.37965004]
[1773046570004,0.70118542,83.799,83.77,5.07471029]
[1773046571078,0.1,83.82,83.781,0.69506025]
[1773046571079,4.37965004,83.81,83.781,0.69506025]
[1773046571263,0.70118542,83.809,83.781,0.69506025]
[1773046572169,0.70118542,83.806,83.781,0.69506025]
[1773046572778,0.70118542,83.806,83.783,0.69506025]
[1773046574864,11.93246226,83.805,83.783,0.69506025]
[1773046575868,0.70118542,83.812,83.783,0.69506025]
[1773046576074,0.70118542,83.812,83.76,4.37965004]
[1773046576075,11.93046922,83.819,83.8,5.07471029]
[1773046576580,0.70118542,83.818,83.791,0.69506025]
[1773046577568,0.70118542,83.816,83.791,0.69506025]
[1773046577769,0.70118542,83.809,83.78,4.37965004]
[1773046578784,11.93203512,83.808,83.78,4.37965004]
[1773046578986,0.70118542,83.807,83.78,4.37965004]
[1773046579885,0.70118542,83.807,83.764,29.84561239]
[1773046579886,0.70118542,83.807,83.777,12.63151058]
[1773046580087,0.70118542,83.799,83.77,11.9373238]
[1773046580263,0.70118542,83.799,83.77,4.37965004]
[1773046580470,0.70118542,83.805,83.771,0.69506025]
[1773046580770,0.70118542,83.805,83.781,0.69506025]
[1773046581189,11.93260464,83.804,83.781,0.69506025]
[1773046581578,11.93193432,83.809,83.783,0.69506025]
[1773046581767,0.70118542,83.818,83.791,0.69506025]
[1773046582494,0.70118542,83.809,83.774,0.69506025]
[1773046582675,0.70118542,83.809,83.772,0.69506025]
[1773046583788,0.70118542,83.807,83.774,0.69506025]
[1773046585482,0.70118542,83.807,83.721,104.9]
[1773046585483,0.70118542,83.789,83.754,0.69506025]
[1773046585691,0.70118542,83.789,83.756,0.69506025]
[1773046585987,0.70118542,83.787,83.758,0.69506025]
[1773046586591,11.93488327,83.788,83.761,0.69506025]
[1773046588274,0.70118542,83.79,83.763,0.69506025]
[1773046591080,0.70118542,83.788,83.763,0.69506025]
[1773046592479,0.70118542,83.788,83.765,0.69506025]
[1773046593386,0.70118542,83.788,83.767,0.66255587]
[1773046593703,11.93502571,83.787,83.767,0.66255587]
[1773046594902,12.60746441,83.787,83.767,0.66255587]
[1773046595783,11.93502571,83.787,83.767,0.66255587]
[1773046597400,0.6724387,83.787,83.767,0.66255587]
[1773046599296,0.6724387,83.785,83.761,0.66255587]
[1773046599706,0.6724387,83.785,83.762,0.66255587]
[1773046600205,11.93516816,83.786,83.762,0.66255587]
[1773046600709,0.6724387,83.785,83.762,0.66255587]
[1773046601808,0.6724387,83.783,83.756,11.93931245]
[1773046602513,0.6724387,83.783,83.757,0.66255587]
[1773046604608,0.6724387,83.781,83.757,0.66255587]
[1773046606693,0.6724387,83.781,83.759,0.66255587]
[1773046607814,0.6724387,83.781,83.761,0.66149338]
[1773046608016,11.93525436,83.786,83.761,0.66149338]
[1773046608611,0.67286416,83.814,83.781,0.66149338]
[1773046609314,4.37965004,83.79,83.753,0.66149338]
[1773046609497,0.67286416,83.779,83.753,0.66149338]
[1773046609695,4.37965004,83.78,83.753,0.66149338]
[1773046609696,0.67286416,83.785,83.753,0.66149338]
[1773046609908,0.67286416,83.799,83.761,0.66149338]
[1773046610405,0.67286416,83.807,83.781,0.66149338]
[1773046611296,12.60618078,83.799,83.773,0.66149338]
[1773046611620,0.67286416,83.799,83.773,0.66149338]
[1773046611795,11.9327889,83.803,83.781,0.66149338]
[1773046611995,11.93207007,83.808,83.781,0.66149338]
[1773046612196,11.93207007,83.808,83.79,4.37965004]
[1773046612391,0.67286416,83.819,83.791,0.66149338]
[1773046613914,12.6036229,83.817,83.791,0.66149338]
[1773046614299,12.6036229,83.817,83.791,12.59586125]
[1773046614592,12.6036229,83.817,83.792,0.66149338]
[1773046615116,0.67286416,83.816,83.781,0.66149338]
[1773046615712,0.67286416,83.809,83.781,0.66149338]
[1773046615919,0.67286416,83.807,83.775,0.66149338]
[1773046616115,0.67286416,83.789,83.757,0.66149338]
[1773046616307,41.76212293,83.808,83.741,0.66149338]
[1773046616308,0.67286416,83.779,83.741,0.66149338]
[1773046617218,0.67286416,83.769,83.741,0.66149338]
[1773046617710,0.67286416,83.779,83.741,0.66149338]
[1773046619521,0.67286416,83.777,83.743,0.66149338]
[1773046620703,0.67286416,83.769,83.743,0.66149338]
[1773046621927,0.67286416,83.777,83.744,11.94115399]
[1773046622227,0.67286416,83.789,83.751,0.66149338]
[1773046623020,0.68137392,83.787,83.752,11.94001337]
[1773046623205,0.68137392,83.787,83.753,0.63783879]
[1773046624099,4.38043949,83.79,83.761,0.63783879]
[1773046624305,11.93445963,83.791,83.761,0.63783879]
[1773046624649,0.68137392,83.794,83.761,0.63783879]
[1773046624650,11.93417111,83.793,83.761,0.63783879]
[1773046624925,0.68137392,83.792,83.761,0.63783879]
[1773046628908,0.68137392,83.792,83.763,0.63783879]
[1773046629425,3.69383402,83.823,83.762,11.9385879]
[1773046629426,0.68137392,83.809,83.781,0.63783879]
[1773046630930,0.68137392,83.805,83.781,0.63783879]
[1773046631125,0.68137392,83.805,83.782,12.57357677]
[1773046632730,0.68137392,83.803,83.776,0.63783879]
[1773046632924,0.68137392,83.803,83.778,0.63783879]
[1773046634326,0.68137392,83.789,83.742,0.63783879]
[1773046634634,5.06181341,83.75,83.726,0.63783879]
[1773046634839,0.68137392,83.749,83.726,0.63783879]
[1773046635018,0.68137392,83.749,83.721,11.94443449]
[1773046635836,0.68137392,83.749,83.693,59.74190104]
[1773046635837,0.68137392,83.739,83.706,0.63783879]
[1773046636137,0.68137392,83.729,83.706,0.63783879]
[1773046636340,0.68137392,83.728,83.706,0.63783879]
[1773046636510,0.68137392,83.728,83.703,11.9468973]
[1773046638334,0.68137392,83.728,83.703,0.63783879]
[1773046638525,0.68137392,83.726,83.703,0.63783879]
[1773046640730,0.68137392,83.726,83.704,11.94686036]
[1773046641236,0.68137392,83.735,83.705,0.63783879]
[1773046641835,4.38043949,83.74,83.711,0.63783879]
[1773046642040,0.68137392,83.739,83.711,0.63783879]
[1773046647938,0.68137392,83.737,83.711,0.63783879]
[1773046648940,11.94140572,83.743,83.713,0.63783879]
[1773046649139,0.68137392,83.742,83.713,0.63783879]
[1773046649337,0.68137392,83.739,83.713,0.63783879]
[1773046650248,0.68137392,83.739,83.688,53.72]
[1773046650249,0.68137392,83.746,83.715,0.63783879]
[1773046650841,0.68137392,83.739,83.715,0.63783879]
[1773046651830,0.68137392,83.739,83.709,0.63783879]
[1773046652345,0.68137392,83.737,83.711,0.63783879]
[1773046653647,0.68137392,83.737,83.706,11.94656255]
[1773046653850,0.67931727,83.729,83.698,0.67342918]
[1773046654843,0.67931727,83.729,83.692,11.94857334]
[1773046654844,0.67931727,83.719,83.692,0.67342918]
[1773046655250,4.38043949,83.71,83.685,0.67342918]
[1773046655454,0.67931727,83.709,83.685,0.67342918]
[1773046655656,0.67931727,83.709,83.684,11.94958016]
[1773046656655,0.67931727,83.709,83.681,0.67342918]
[1773046657750,0.67931727,83.72,83.691,0.67342918]
[1773046657932,4.38043949,83.73,83.691,0.67342918]
[1773046657933,0.67931727,83.719,83.691,0.67342918]
[1773046660071,0.67931727,83.717,83.693,0.67342918]
[1773046660853,11.94435841,83.722,83.693,0.67342918]
[1773046661350,0.67931727,83.719,83.693,0.67342918]
[1773046662552,0.67931727,83.719,83.695,0.67342918]
[1773046663754,0.68431534,83.718,83.695,0.67342918]
[1773046664149,11.94478827,83.719,83.695,0.67342918]
[1773046664364,12.62910361,83.719,83.695,0.67342918]
[1773046664658,11.94478827,83.719,83.696,11.94800229]
[1773046664867,0.68431534,83.718,83.696,12.63714076]
[1773046665750,0.68431534,83.716,83.69,0.68913847]
[1773046667069,0.68431534,83.716,83.691,0.68913847]
[1773046667445,59.70203295,83.75,83.682,29.87500298]
[1773046667446,0.68431534,83.735,83.701,0.68913847]
[1773046667640,0.68431534,83.735,83.711,0.68913847]
[1773046667846,0.68431534,83.733,83.711,0.68913847]
[1773046668954,12.12718067,83.732,83.711,0.68913847]
[1773046669157,0.68431534,83.731,83.711,0.68913847]
[1773046672260,0.68431534,83.729,83.708,12.63529132]
[1773046672457,0.68431534,83.729,83.709,0.68913847]
[1773046672646,12.62775122,83.728,83.709,0.68913847]
[1773046673562,0.68431534,83.727,83.709,0.68913847]
[1773046676161,0.68431534,83.727,83.681,59.75071999]
[1773046676348,0.68431534,83.727,83.7,4.38043949]
[1773046676751,0.68431534,83.725,83.69,4.38043949]
[1773046676951,4.38043949,83.71,83.682,11.95000119]
[1773046677153,0.68431534,83.709,83.682,11.95000119]
[1773046678053,0.68431534,83.707,83.673,0.39219048]
[1773046678449,11.94628948,83.708,83.673,0.39219048]
[1773046678450,0.68431534,83.699,83.673,0.39219048]
[1773046679365,0.68431534,83.699,83.671,11.95157222]
[1773046679667,0.68431534,83.699,83.671,12.34351617]
[1773046679842,0.68431534,83.699,83.672,0.39194395]
[1773046680971,0.68431534,83.699,83.674,0.39182106]
[1773046682468,0.68431534,83.716,83.691,0.39158969]
[1773046682771,0.68431534,83.714,83.685,0.39158969]
[1773046683269,0.67137107,83.709,83.685,0.39158969]
[1773046684668,0.67137107,83.709,83.681,11.95014399]
[1773046684868,0.67137107,83.707,83.681,11.95014399]
[1773046685979,0.67137107,83.707,83.681,12.34127418]
[1773046686757,0.67137107,83.699,83.674,0.39102554]
[1773046687061,0.67137107,83.699,83.674,12.3420961]
[1773046688967,0.67137107,83.697,83.671,11.95157222]
[1773046689862,0.67137107,83.697,83.671,12.34226399]
[1773046690560,0.67137107,83.695,83.671,12.34226399]
[1773046691579,0.67137107,83.695,83.672,11.95142939]
[1773046693379,0.67137107,83.695,83.673,0.3897922]
[1773046693582,0.67137107,83.705,83.673,0.3897922]
[1773046696185,11.94666176,83.706,83.681,0.38928978]
[1773046696679,0.67137107,83.699,83.674,11.95114372]
[1773046697183,0.67137107,83.699,83.675,0.38879711]
[1773046701871,0.67137107,83.699,83.674,11.95114372]
[1773046701872,0.67137107,83.712,83.681,0.38783591]
[1773046703369,0.67137107,83.712,83.68,4.38717726]
[1773046703370,12.61585305,83.721,83.691,0.38737401]
[1773046703570,0.67137107,83.724,83.691,0.38737401]
[1773046703887,0.67137107,83.719,83.691,0.38737401]
[1773046704091,0.67137107,83.709,83.677,12.33808926]
[1773046704272,0.67137107,83.709,83.678,0.38714666]
[1773046705168,0.67137107,83.709,83.681,0.38714666]
[1773046705984,0.67137107,83.709,83.683,0.3869229]
[1773046707291,0.67137107,83.709,83.684,12.33619665]
[1773046707589,0.67137107,83.709,83.685,0.38648106]
[1773046709899,0.67137107,83.709,83.686,11.94943001]
[1773046710080,0.67137107,83.709,83.686,12.33547984]
[1773046710275,59.7120614,83.736,83.686,12.33547984]
[1773046710276,0.67137107,83.726,83.691,0.3858377]
[1773046710481,29.854844,83.739,83.711,0.3858377]
[1773046710482,0.67137107,83.739,83.711,0.3858377]
[1773046710791,0.67137107,83.739,83.702,0.3858377]
[1773046710984,0.67137107,83.729,83.7,4.38717726]
[1773046711385,0.67137107,83.729,83.7,4.77280546]
[1773046711685,0.67137107,83.729,83.691,0.3856282]
[1773046712288,0.67137107,83.727,83.693,0.38541993]
[1773046713474,0.67137107,83.727,83.701,0.38501026]
[1773046714488,11.94372118,83.726,83.702,11.94714582]
[1773046714692,0.61384848,83.725,83.702,11.94714582]
[1773046715309,0.61384848,83.725,83.702,12.33174821]
[1773046715604,0.61384848,83.725,83.703,0.38460239]
[1773046717892,0.61384848,83.736,83.705,0.38420398]
[1773046718187,0.61384848,83.736,83.711,0.38420398]
[1773046718704,0.61384848,83.736,83.705,0.38400303]
[1773046720406,11.94243745,83.735,83.706,11.94657491]
[1773046720607,0.61384848,83.734,83.707,0.38362833]
[1773046722187,4.38717726,83.73,83.707,0.38344364]
[1773046722386,0.61384848,83.729,83.707,0.38344364]
[1773046726211,0.61384848,83.729,83.709,0.3823616]
[1773046728210,0.61384848,83.729,83.7,4.38717726]
[1773046728211,0.67092448,83.747,83.711,0.38219087]
[1773046729287,41.79154376,83.749,83.71,4.38717726]
[1773046729288,0.67092448,83.739,83.71,4.38717726]
[1773046729593,0.67092448,83.739,83.706,0.38185241]
[1773046730409,0.67092448,83.737,83.701,0.3816962]
[1773046730598,0.67092448,83.729,83.702,0.3816962]
[1773046735294,0.67092448,83.729,83.704,0.38088386]
[1773046735696,0.67092448,83.729,83.71,4.76806112]
[1773046735997,0.67092448,83.729,83.711,0.38088386]
[1773046736314,0.67092448,83.756,83.721,0.38072814]
[1773046736525,0.67092448,83.749,83.71,4.38717726]
[1773046736820,0.67092448,83.749,83.711,0.38072814]
[1773046738922,0.67092448,83.747,83.713,0.3804155]
[1773046742120,0.67092448,83.745,83.714,11.94543326]
[1773046742316,0.67092448,83.745,83.715,0.37982612]
[1773046742498,0.67092448,83.739,83.714,11.94543326]
[1773046742706,0.67092448,83.739,83.711,0.37982612]
[1773046743014,0.67092448,83.739,83.603,47.84493167]
[1773046743015,0.6209231,83.719,83.692,11.94857334]
[1773046744003,0.6209231,83.719,83.683,0.37954467]
[1773046744209,0.6209231,83.717,83.684,11.94971559]
[1773046744418,0.6209231,83.717,83.685,0.37940742]
[1773046744612,0.6209231,83.717,83.684,11.94971559]
[1773046745209,0.6209231,83.717,83.685,0.37940742]
[1773046747416,0.6209231,83.709,83.671,0.37899563]
[1773046747618,0.6209231,83.709,83.671,11.95157222]
[1773046747816,0.6209231,83.709,83.681,0.37899563]
[1773046750427,0.6209231,83.708,83.682,11.95000119]
[1773046751003,0.6209231,83.699,83.671,11.95144157]
[1773046752523,0.6209231,83.698,83.672,0.37538627]
[1773046753526,0.6209231,83.698,83.674,0.37379918]
[1773046754121,0.6209231,83.698,83.68,4.75713507]
[1773046754326,0.6209231,83.698,83.681,0.37222317]
[1773046754504,0.6209231,83.707,83.681,0.37222317]
[1773046756324,0.6209231,83.707,83.683,0.36914085]
[1773046756524,0.6209231,83.707,83.691,0.36914085]
[1773046756823,0.6209231,83.707,83.69,4.38333589]
[1773046757030,0.6209231,83.707,83.686,0.36914085]
[1773046760224,0.6209231,83.713,83.688,0.36463049]
[1773046760605,0.6209231,83.713,83.687,11.94928722]
[1773046761523,0.6209231,83.713,83.688,0.36171797]
[1773046763907,11.94571865,83.712,83.688,0.36171797]
[1773046764224,0.6209231,83.711,83.689,11.94900166]
[1773046764526,0.6209231,83.711,83.688,0.36171797]
[1773046764725,0.6209231,83.709,83.688,0.36171797]